Workbook

Sheet 表3-本會職員各職系性別統計
A1: 本會職員各職系性別比例
AL2: 表3
A3: 年別 | C3: 總計 | D3: 土木工程 | I3: 經建行政 | N3: 綜合行政 | O3: 綜合行政 | S3: 法制 | T3: 法制 | X3: 資訊處理 | Y3: 資訊處理 | AC3: 人事行政 | AD3: 人事行政 | AH3: 會計審計 | AI3: 會計審計
D4: 小計 | E4: 男 | G4: 女 | I4: 小計 | J4: 男 | L4: 女 | N4: 小計 | O4: 男 | Q4: 女 | S4: 小計 | T4: 男 | V4: 女 | X4: 小計 | Y4: 男 | AA4: 女 | AC4: 小計 | AD4: 男 | AF4: 女 | AH4: 小計 | AI4: 男 | AK4: 女
F5: 主管 | H5: 主管 | K5: 主管 | M5: 主管 | P5: 主管 | R5: 主管 | U5: 主管 | W5: 主管 | Z5: 主管 | AB5: 主管 | AE5: 主管 | AG5: 主管 | AJ5: 主管 | AL5: 主管
A6: 108年 | B6: 人數 | C6: =D6+I6+N6+S6+X6+AC6+AH6 -> 120 | D6: =E6+G6 -> 67 | E6: 57 | F6: 11 | G6: 10 | H6: 2 | I6: =J6+L6 -> 15 | J6: 8 | K6: 2 | L6: 7 | M6: 2 | N6: =O6+Q6 -> 14 | O6: 9 | P6: 2 | Q6: 5 | R6: 1 | S6: =T6+V6 -> 10 | T6: 1 | U6: 0 | V6: 9 | W6: 2 | X6: =Y6+AA6 -> 8 | Y6: 7 | Z6: 0 | AA6: 1 | AB6: 0 | AC6: =AD6+AF6 -> 3 | AD6: 0 | AE6: 0 | AF6: 3 | AG6: 1 | AH6: =AI6+AK6 -> 3 | AI6: 1 | AJ6: 0 | AK6: 2 | AL6: 1
B7: 比例 | C7: 100% | D7: =D6/C6 -> 56% | E7: =E6/(E6+G6) -> 85% | F7: =F6/E6 -> 19% | G7: =G6/(E6+G6) -> 15% | H7: =H6/G6 -> 20% | I7: =I6/C6 -> 13% | J7: =J6/(J6+L6) -> 53% | K7: =K6/J6 -> 25% | L7: =L6/(J6+L6) -> 47% | M7: =M6/L6 -> 29% | N7: =N6/C6 -> 12% | O7: =O6/(O6+Q6) -> 64% | P7: =P6/O6 -> 22% | Q7: =Q6/(O6+Q6) -> 36% | R7: =R6/Q6 -> 20% | S7: =S6/C6 -> 8% | T7: =T6/(T6+V6) -> 10% | U7: =U6/T6 -> 0% | V7: =V6/(T6+V6) -> 90% | W7: =W6/V6 -> 22% | X7: =X6/C6 -> 7% | Y7: =Y6/(Y6+AA6) -> 88% | Z7: =Z6/Y6 -> 0% | AA7: =AA6/(Y6+AA6) -> 13% | AB7: =AB6/AA6 -> 0% | AC7: =AC6/C6 -> 3% | AD7: =AD6/(AD6+AF6) -> 0% | AE7: 0% | AF7: 100% | AG7: =AG6/AF6 -> 33% | AH7: =AH6/C6 -> 3% | AI7: =AI6/(AI6+AK6) -> 33% | AJ7: =AJ6/(AJ6+AL6) -> 0% | AK7: =AK6/(AI6+AK6) -> 67% | AL7: =AL6/AK6 -> 50%
A8: 109年 | B8: 人數 | C8: 126 | D8: =E8+G8 -> 72 | E8: 62 | F8: 13 | G8: 10 | H8: 2 | I8: =J8+L8 -> 14 | J8: 9 | K8: 2 | L8: 5 | M8: 0 | N8: =O8+Q8 -> 16 | O8: 9 | P8: 2 | Q8: 7 | R8: 2 | S8: =T8+V8 -> 10 | T8: 1 | U8: 0 | V8: 9 | W8: 2 | X8: =Y8+AA8 -> 6 | Y8: 5 | Z8: 0 | AA8: 1 | AB8: 0 | AC8: =AD8+AF8 -> 4 | AD8: 0 | AE8: 0 | AF8: 4 | AG8: 1 | AH8: =AI8+AK8 -> 4 | AI8: 1 | AJ8: 0 | AK8: 3 | AL8: 1
B9: 比例 | C9: 100% | D9: =D8/C8 -> 57% | E9: =E8/(E8+G8) -> 86% | F9: =F8/E8 -> 21% | G9: =G8/(E8+G8) -> 14% | H9: =H8/G8 -> 20% | I9: =I8/C8 -> 11% | J9: =J8/(J8+L8) -> 64% | K9: =K8/J8 -> 22% | L9: =L8/(J8+L8) -> 36% | M9: =M8/L8 -> 0% | N9: =N8/C8 -> 13% | O9: =O8/(O8+Q8) -> 56% | P9: =P8/O8 -> 22% | Q9: =Q8/(O8+Q8) -> 44% | R9: =R8/Q8 -> 29% | S9: =S8/C8 -> 8% | T9: =T8/(T8+V8) -> 10% | U9: =U8/T8 -> 0% | V9: =V8/(T8+V8) -> 90% | W9: =W8/V8 -> 22% | X9: =X8/C8 -> 5% | Y9: =Y8/(Y8+AA8) -> 83% | Z9: =Z8/Y8 -> 0% | AA9: =AA8/(Y8+AA8) -> 17% | AB9: =AB8/AA8 -> 0% | AC9: =AC8/C8 -> 3% | AD9: =AD8/(AD8+AF8) -> 0% | AE9: 0% | AF9: 100% | AG9: =AG8/AF8 -> 25% | AH9: =AH8/C8 -> 3% | AI9: =AI8/(AI8+AK8) -> 25% | AJ9: =AJ8/(AJ8+AL8) -> 0% | AK9: =AK8/(AI8+AK8) -> 75% | AL9: =AL8/AK8 -> 33%
A10: 110年 | B10: 人數 | C10: 130 | D10: =E10+G10 -> 72 | E10: 61 | F10: 13 | G10: 11 | H10: 2 | I10: =J10+L10 -> 17 | J10: 8 | K10: 3 | L10: 9 | M10: 1 | N10: =O10+Q10 -> 16 | O10: 9 | P10: 2 | Q10: 7 | R10: 2 | S10: =T10+V10 -> 11 | T10: 1 | U10: 0 | V10: 10 | W10: 2 | X10: =Y10+AA10 -> 7 | Y10: 7 | Z10: 0 | AA10: 0 | AB10: 0 | AC10: =AD10+AF10 -> 3 | AD10: 0 | AE10: 0 | AF10: 3 | AG10: 1 | AH10: =AI10+AK10 -> 4 | AI10: 1 | AJ10: 0 | AK10: 3 | AL10: 1
B11: 比例 | C11: 100% | D11: =D10/C10 -> 55% | E11: =E10/(E10+G10) -> 85% | F11: =F10/E10 -> 21% | G11: =G10/(E10+G10) -> 15% | H11: =H10/G10 -> 18% | I11: =I10/C10 -> 13% | J11: =J10/(J10+L10) -> 47% | K11: =K10/J10 -> 38% | L11: =L10/(J10+L10) -> 53% | M11: =M10/L10 -> 11% | N11: =N10/C10 -> 12% | O11: =O10/(O10+Q10) -> 56% | P11: =P10/O10 -> 22% | Q11: =Q10/(O10+Q10) -> 44% | R11: =R10/Q10 -> 29% | S11: =S10/C10 -> 8% | T11: =T10/(T10+V10) -> 9% | U11: =U10/T10 -> 0% | V11: =V10/(T10+V10) -> 91% | W11: =W10/V10 -> 20% | X11: =X10/C10 -> 5% | Y11: =Y10/(Y10+AA10) -> 100% | Z11: =Z10/Y10 -> 0% | AA11: =AA10/(Y10+AA10) -> 0% | AB11: 0% | AC11: =AC10/C10 -> 2% | AD11: =AD10/(AD10+AF10) -> 0% | AE11: 0% | AF11: 100% | AG11: =AG10/AF10 -> 33% | AH11: =AH10/C10 -> 3% | AI11: =AI10/(AI10+AK10) -> 25% | AJ11: =AJ10/(AJ10+AL10) -> 0% | AK11: =AK10/(AI10+AK10) -> 75% | AL11: =AL10/AK10 -> 33%
A12: 111年 | B12: 人數 | C12: 135 | D12: 75 | E12: 63 | F12: 14 | G12: 12 | H12: 3 | I12: 18 | J12: 11 | K12: 4 | L12: 7 | M12: 1 | N12: =O12+Q12 -> 15 | O12: 8 | P12: 4 | Q12: 7 | R12: 1 | S12: =T12+V12 -> 12 | T12: 1 | U12: 0 | V12: 11 | W12: 4 | X12: =Y12+AA12 -> 7 | Y12: 7 | Z12: 0 | AA12: 0 | AB12: 0 | AC12: 4 | AD12: 0 | AE12: 0 | AF12: 4 | AG12: 1 | AH12: =AI12+AK12 -> 4 | AI12: 1 | AJ12: 0 | AK12: 3 | AL12: 1
B13: 比例 | C13: 100% | D13: =D12/C12 -> 56% | E13: =E12/(E12+G12) -> 84% | F13: =F12/E12 -> 22% | G13: =G12/(E12+G12) -> 16% | H13: =H12/G12 -> 25% | I13: =I12/C12 -> 13% | J13: =J12/(J12+L12) -> 61% | K13: =K12/J12 -> 36% | L13: =L12/(J12+L12) -> 39% | M13: =M12/L12 -> 14% | N13: =N12/C12 -> 11% | O13: =O12/(O12+Q12) -> 53% | P13: =P12/O12 -> 50% | Q13: =Q12/(O12+Q12) -> 47% | R13: =R12/Q12 -> 14% | S13: =S12/C12 -> 9% | T13: =T12/(T12+V12) -> 8% | U13: =U12/T12 -> 0% | V13: =V12/(T12+V12) -> 92% | W13: =W12/V12 -> 36% | X13: =X12/C12 -> 5% | Y13: =Y12/(Y12+AA12) -> 100% | Z13: =Z12/Y12 -> 0% | AA13: =AA12/(Y12+AA12) -> 0% | AB13: 0% | AC13: =AC12/C12 -> 3% | AD13: =AD12/(AD12+AF12) -> 0% | AE13: 0% | AF13: 100% | AG13: =AG12/AF12 -> 25% | AH13: =AH12/C12 -> 3% | AI13: =AI12/(AI12+AK12) -> 25% | AJ13: =AJ12/(AJ12+AL12) -> 0% | AK13: =AK12/(AI12+AK12) -> 75% | AL13: =AL12/AK12 -> 33%
A14: 112年 | B14: 人數 | C14: 130 | D14: 68 | E14: 55 | F14: 14 | G14: 13 | H14: 3 | I14: 15 | J14: 10 | K14: 6 | L14: 5 | M14: 0 | N14: =O14+Q14 -> 17 | O14: 9 | P14: 5 | Q14: 8 | R14: 1 | S14: 12 | T14: 3 | U14: 0 | V14: 9 | W14: 4 | X14: 10 | Y14: 8 | Z14: 1 | AA14: 2 | AB14: 1 | AC14: 4 | AD14: 1 | AE14: 0 | AF14: 3 | AG14: 1 | AH14: 4 | AI14: 1 | AJ14: 0 | AK14: 3 | AL14: 1
B15: 比例 | C15: 100% | D15: =D14/C14 -> 52% | E15: =E14/(E14+G14) -> 81% | F15: =F14/E14 -> 25% | G15: =G14/(E14+G14) -> 19% | H15: =H14/G14 -> 23% | I15: =I14/C14 -> 12% | J15: =J14/(J14+L14) -> 67% | K15: =K14/J14 -> 60% | L15: =L14/(J14+L14) -> 33% | M15: =M14/L14 -> 0% | N15: =N14/C14 -> 13% | O15: =O14/(O14+Q14) -> 53% | P15: =P14/O14 -> 56% | Q15: =Q14/(O14+Q14) -> 47% | R15: =R14/Q14 -> 13% | S15: =S14/C14 -> 9% | T15: =T14/(T14+V14) -> 25% | U15: =U14/T14 -> 0% | V15: =V14/(T14+V14) -> 75% | W15: =W14/V14 -> 44% | X15: =X14/C14 -> 8% | Y15: =Y14/(Y14+AA14) -> 80% | Z15: =Z14/Y14 -> 13% | AA15: =AA14/(Y14+AA14) -> 20% | AB15: =AB14/AA14 -> 50% | AC15: =AC14/C14 -> 3% | AD15: =AD14/(AD14+AF14) -> 25% | AE15: 0% | AF15: =AF14/(AD14+AF14) -> 75% | AG15: =AG14/AF14 -> 33% | AH15: =AH14/C14 -> 3% | AI15: =AI14/(AI14+AK14) -> 25% | AJ15: =AJ14/(AJ14+AL14) -> 0% | AK15: =AK14/(AI14+AK14) -> 75% | AL15: =AL14/AK14 -> 33%
A16: 113年 | B16: 人數 | C16: 146 | D16: 75 | E16: 61 | F16: 15 | G16: 14 | H16: 2 | I16: 20 | J16: 14 | K16: 5 | L16: 6 | M16: 0 | N16: 22 | O16: 13 | P16: 5 | Q16: 9 | R16: 1 | S16: 12 | T16: 4 | U16: 0 | V16: 8 | W16: 4 | X16: 9 | Y16: 7 | Z16: 0 | AA16: 2 | AB16: 1 | AC16: 5 | AD16: 1 | AE16: 0 | AF16: 4 | AG16: 1 | AH16: 3 | AI16: 1 | AJ16: 0 | AK16: 2 | AL16: 1
B17: 比例 | C17: =D17+I17+N17+S17+X17+AC17+AH17 -> 100% | D17: =D16/C16 -> 51% | E17: =E16/(E16+G16) -> 81% | F17: =F16/E16 -> 25% | G17: =G16/(E16+G16) -> 19% | H17: =H16/G16 -> 14% | I17: =I16/C16 -> 14% | J17: =J16/(J16+L16) -> 70% | K17: =K16/J16 -> 36% | L17: =L16/(J16+L16) -> 30% | M17: =M16/L16 -> 0% | N17: =N16/C16 -> 15% | O17: =O16/(O16+Q16) -> 59% | P17: =P16/O16 -> 38% | Q17: =Q16/(O16+Q16) -> 41% | R17: =R16/Q16 -> 11% | S17: =S16/C16 -> 8% | T17: =T16/(T16+V16) -> 33% | U17: =U16/T16 -> 0% | V17: =V16/(T16+V16) -> 67% | W17: =W16/V16 -> 50% | X17: =X16/C16 -> 6% | Y17: =Y16/(Y16+AA16) -> 78% | Z17: =Z16/Y16 -> 0% | AA17: =AA16/(Y16+AA16) -> 22% | AB17: =AB16/AA16 -> 50% | AC17: =AC16/C16 -> 3% | AD17: =AD16/(AD16+AF16) -> 20% | AE17: 0% | AF17: =AF16/(AD16+AF16) -> 80% | AG17: =AG16/AF16 -> 25% | AH17: =AH16/C16 -> 2% | AI17: =AI16/(AI16+AK16) -> 33% | AJ17: =AJ16/(AJ16+AL16) -> 0% | AK17: =AK16/(AI16+AK16) -> 67% | AL17: =AL16/AK16 -> 50%
A18: 備註： 1.性別資料使用：本表為本會職員各職系之性別比例，並以主管/非主管為副分類，以土木工程職系為例，該職系總人數為75人，其中男性61人，佔81%，女性14人，佔19%，女性人數略為提升；另土木工程職系男性主管為15人，比例為25%；女性主管為2人，比例為14%。從本表可知，本會以土木工程職系人員為主，約佔51%。又本會各職系女性主管比例，法制職系、資訊處理職系、人事行政職系、會計審計職系女性主管比例均高於男性，顯示本會致力拔擢優秀女性人才。 2.應用深化：受限於政府人事法制，在相關職缺公告、進用及陞遷時均不得限制性別，惟本會各職系人員男女比例及擔任主管情形，可提供首長勾選外補或陞遷人選之參考。 3.未進行國際性別統計比較原因說明：茲考量其他國家政府組織型態、功能任務迥異，爰未能就與本會業務性質與角色功能完全相同之國外政府機關進行國際比較。
